bitfinex/quotes_SOLUSD_20260213
["timestamp","ask_amount","ask_price","bid_price","bid_amount"]
[1770998257625,10.74073505,83.13,83.103,34.74]
[1770998257822,10.74073505,83.13,83.099,12.03383915]
[1770998258028,10.74073505,83.12,83.098,0.47112861]
[1770998258229,10.74073505,83.12,83.086,0.47112861]
[1770998258421,10.74073505,83.11,83.075,0.47112861]
[1770998258616,10.74073505,83.11,83.078,12.03679843]
[1770998259623,10.74073505,83.12,83.081,0.47112861]
[1770998260835,12.02515662,83.159,83.111,0.47112861]
[1770998261037,12.02515662,83.159,83.092,5.36086188]
[1770998261038,10.74073505,83.17,83.131,0.47112861]
[1770998261218,10.74073505,83.15,83.125,0.47112861]
[1770998261420,10.74073505,83.15,83.113,0.47112861]
[1770998261936,10.74073505,83.17,83.131,0.47112861]
[1770998262317,10.74073505,83.15,83.121,0.47112861]
[1770998262520,10.74073505,83.16,83.121,0.47112861]
[1770998262722,10.74073505,83.14,83.11,0.47112861]
[1770998263040,48.08670501,83.184,83.1,10.74073505]
[1770998263041,12.02457823,83.163,83.121,0.47112861]
[1770998263338,10.74073505,83.16,83.121,0.47112861]
[1770998263522,10.74073505,83.14,83.111,12.03210164]
[1770998263838,10.74073505,83.15,83.112,0.47112861]
[1770998264138,10.74073505,83.16,83.131,0.47112861]
[1770998264339,10.74073505,83.16,83.12,10.74073505]
[1770998264521,10.74073505,83.15,83.119,0.47112861]
[1770998265220,10.74073505,83.15,83.12,12.03079884]
[1770998265634,10.74073505,83.16,83.121,0.47112861]
[1770998265833,10.74073505,83.16,83.131,0.47112861]
[1770998266435,10.74073505,83.16,83.121,0.47112861]
[1770998266629,10.74073505,83.15,83.121,0.47112861]
[1770998266835,11.14073505,83.16,83.121,0.47112861]
[1770998267544,10.74073505,83.15,83.122,12.03050937]
[1770998268750,0.4,83.139,83.111,12.03210164]
[1770998268938,10.74073505,83.13,83.1,12.03369434]
[1770998269327,10.74073505,83.13,83.096,30.08542411]
[1770998269732,10.74073505,83.13,83.091,12.03499777]
[1770998269733,10.74073505,83.13,83.092,0.47112861]
[1770998269948,12.02949632,83.129,83.092,0.47112861]
[1770998270452,10.74073505,83.12,83.088,12.03543231]
[1770998270752,10.74073505,83.1,83.075,12.0372696]
[1770998271266,42.10323713,83.129,83.052,0.47112861]
[1770998271267,0.4,83.089,83.052,0.47112861]
[1770998271548,10.74073505,83.09,83.051,0.47112861]
[1770998271751,10.74073505,83.08,83.051,0.47112861]
[1770998272461,10.74073505,83.07,83.051,0.47112861]
[1770998272754,10.74073505,83.08,83.051,0.47112861]
[1770998273172,10.74073505,83.07,83.04,42.14836223]
[1770998273455,10.74073505,83.07,82.98,0.1]
[1770998273456,10.74073505,83.06,83.031,12.04369452]
[1770998273625,12.03842894,83.068,83.031,12.04369452]
[1770998273826,10.74073505,83.06,83.031,12.04369452]
[1770998274241,10.74073505,83.05,83.021,12.0451452]
[1770998274629,0.4,83.049,82.981,0.47112861]
[1770998274848,10.74073505,83.06,83.021,0.47112861]
[1770998275149,10.74073505,83.06,82.981,150.63689277]
[1770998275150,10.74073505,83.08,83.041,0.47112861]
[1770998275454,10.74073505,83.06,83.031,0.47112861]
[1770998275754,10.74073505,83.05,83.027,34.9]
[1770998275931,10.74073505,83.04,83.009,0.47112861]
[1770998276126,10.74073505,83.03,82.997,0.47112861]
[1770998276330,10.74073505,83.03,83.0,12.04812649]
[1770998276533,10.74073505,83.04,83.0,23.25999015]
[1770998276756,10.74073505,83.03,83.0,23.25999015]
[1770998276931,4.61729252,83.066,83.001,0.47112861]
[1770998276932,0.4,83.056,83.001,0.47112861]
[1770998277255,0.4,83.069,83.031,0.47112861]
[1770998277455,10.74073505,83.06,83.031,0.47112861]
[1770998277660,48.13568469,83.099,83.007,5.36086188]
[1770998277661,10.74073505,83.07,83.033,0.47112861]
[1770998277867,10.74073505,83.07,83.041,0.47112861]
[1770998278329,10.74073505,83.05,83.027,46.944219]
[1770998278530,10.74073505,83.07,83.031,0.47112861]
[1770998279053,12.03672083,83.08,83.031,0.47112861]
[1770998279054,10.74073505,83.06,83.031,0.47112861]
[1770998279240,10.74073505,83.07,83.031,0.47112861]
[1770998279550,10.74073505,83.07,83.04,10.74073505]
[1770998279755,10.74073505,83.07,83.041,0.47112861]
[1770998280550,10.74073505,83.08,83.041,0.47112861]
[1770998280753,22.77598116,83.09,83.051,0.49640667]
[1770998281054,10.74073505,83.09,83.051,0.49640667]
[1770998281355,10.74073505,83.07,83.042,0.49640667]
[1770998281563,10.74073505,83.07,83.043,12.04195416]
[1770998281743,38.04,83.089,83.044,0.49640667]
[1770998282054,10.74073505,83.09,83.051,0.49640667]
[1770998282258,10.74073505,83.09,83.061,0.49640667]
[1770998283056,10.74073505,83.1,83.061,0.49640667]
[1770998283440,12.03383915,83.099,83.061,0.49640667]
[1770998283641,10.74073505,83.1,83.063,0.49640667]
[1770998283845,10.74073505,83.09,83.056,34.94]
[1770998284140,12.03383915,83.099,83.061,0.49640667]
[1770998284541,12.03383915,83.099,83.04,0.49640667]
[1770998284542,10.74073505,83.07,83.04,0.49640667]
[1770998284745,10.74073505,83.06,83.032,12.04354947]
[1770998284944,10.74073505,83.06,83.032,12.53995614]
[1770998285154,10.74073505,83.07,83.033,0.49640667]
[1770998285555,10.74073505,83.07,83.042,12.04209917]
[1770998285952,12.03470809,83.093,83.043,0.49640667]
[1770998286157,10.74073505,83.08,83.049,0.49640667]
[1770998286451,4.61729252,83.116,83.042,42.14734711]
[1770998286452,12.03241585,83.109,83.061,0.49640667]
[1770998286659,10.74073505,83.1,83.061,0.49640667]
[1770998287758,10.74073505,83.1,83.062,42.13719871]
[1770998287959,10.74073505,83.1,83.071,0.49640667]
[1770998288860,10.74503023,83.1,83.071,0.49640667]
[1770998289868,12.03241585,83.109,83.072,12.03775038]
[1770998290246,0.4,83.108,83.072,12.03775038]
[1770998290446,10.74503023,83.09,83.063,12.03905469]
[1770998290647,10.74503023,83.09,83.003,48.1909564]
[1770998290648,10.74503023,83.07,83.037,0.49640667]
[1770998290865,0.4,83.098,83.041,0.49640667]
[1770998291066,10.74503023,83.1,83.061,0.49640667]
[1770998291872,38.02,83.107,83.062,12.03919963]
[1770998291873,10.74503023,83.09,83.062,12.03919963]
[1770998292256,10.74503023,83.09,83.063,0.49640667]
[1770998292465,12.0341633,83.097,83.063,0.49640667]
[1770998292760,12.03258192,83.108,83.063,0.49640667]
[1770998293371,10.74503023,83.11,83.064,5.36086188]
[1770998293566,10.74503023,83.12,83.081,0.49640667]
[1770998294152,12.03094358,83.119,83.083,0.49640667]
[1770998294764,147.5856195,84.101,83.082,12.03630148]
[1770998294765,10.74503023,83.14,83.101,0.49640667]
[1770998295676,42.09492527,83.146,83.101,0.49640667]
[1770998295873,42.09492527,83.146,83.111,0.49640667]
[1770998296052,12.02515662,83.159,83.121,12.52706077]
[1770998296772,10.74503023,83.16,83.122,0.49640667]
[1770998296958,12.02423562,83.166,83.131,0.49640667]
[1770998297159,10.74503023,83.16,83.131,0.49640667]
[1770998297462,10.74503023,83.15,83.121,12.0306541]
[1770998297864,10.74503023,83.15,83.121,12.52706077]
[1770998298158,10.74503023,83.15,83.123,12.03036464]
[1770998298565,10.74503023,83.15,83.124,0.49640667]
[1770998300061,12.02530123,83.158,83.125,12.03007518]
[1770998300870,10.74503023,83.15,83.124,0.49640667]
[1770998301184,10.74503023,83.14,83.105,0.49640667]
[1770998301773,10.74503023,83.12,83.083,0.49640667]
[1770998301958,10.74503023,83.11,83.075,12.03731567]
[1770998302157,10.74503023,83.11,83.075,0.49640667]
[1770998302373,10.74503023,83.12,83.081,0.49640667]
[1770998302680,10.74503023,83.14,83.101,0.49640667]
[1770998302870,10.74503023,83.13,83.101,0.49640667]
[1770998303457,10.74503023,83.14,83.101,0.49640667]
[1770998304058,10.74503023,83.13,83.101,0.49640667]
[1770998304275,10.74503023,83.13,83.102,12.5298114]
[1770998304484,12.02934096,83.131,83.103,0.49640667]
[1770998304658,10.74503023,83.13,83.095,12.03441711]
[1770998304978,10.74503023,83.13,83.096,0.49640667]
[1770998306059,12.02949632,83.129,83.096,0.49640667]
[1770998306465,12.02949632,83.129,83.098,0.49640667]
[1770998307888,10.74503023,83.11,83.083,12.53256328]
[1770998308094,12.03094358,83.119,83.086,0.49640667]
[1770998308264,12.03046403,83.123,83.091,0.49640667]
[1770998308461,12.02964103,83.128,83.091,0.49640667]
[1770998308666,10.74503023,83.12,83.091,0.49640667]
[1770998310189,12.02964103,83.128,83.093,0.49640667]
[1770998311181,10.74503023,83.12,83.094,12.03456326]
[1770998312078,0.4,83.136,83.094,12.03456326]
[1770998312079,12.02747074,83.143,83.101,0.46230613]
[1770998312286,10.74503023,83.14,83.101,0.46230613]
[1770998312667,10.74503023,83.13,83.101,0.46230613]
[1770998313392,12.03094358,83.119,83.089,0.46230613]
[1770998314095,12.03094358,83.119,83.077,35.0]
[1770998314096,10.74503023,83.12,83.091,0.46230613]
[1770998314273,10.74503023,83.13,83.091,0.46230613]
[1770998315170,10.74503023,83.12,83.091,0.46230613]
[1770998315371,12.03094358,83.119,83.083,0.46230613]
[1770998315566,38.16,83.127,83.091,0.46230613]
[1770998315869,10.74503023,83.13,83.091,0.46230613]
[1770998316069,12.02949632,83.129,83.091,0.46230613]
[1770998316269,10.74503023,83.13,83.091,0.46230613]
[1770998316476,22.77451111,83.13,83.091,0.46230613]
[1770998317212,10.74503023,83.12,83.091,0.46230613]
[1770998317371,10.74503023,83.11,83.083,0.45947314]
[1770998317570,0.4,83.126,83.083,0.45947314]
[1770998317571,10.74503023,83.12,83.083,0.45947314]
[1770998317791,0.4,83.126,83.091,0.45947314]
[1770998318094,10.74503023,83.12,83.091,0.45947314]
[1770998318386,0.4,83.119,83.082,12.03619751]
[1770998318590,10.74503023,83.11,83.083,0.45947314]
[1770998318991,10.74503023,83.12,83.083,0.45947314]
[1770998320386,10.74503023,83.1,83.074,12.03746057]
[1770998320597,0.4,83.109,83.075,0.45947314]
[1770998321679,10.74503023,83.1,83.075,0.45947314]
[1770998322206,12.42968256,83.128,83.091,0.45947314]
[1770998322377,10.74503023,83.14,83.101,0.45947314]
[1770998322576,10.74503023,83.13,83.101,0.45947314]
[1770998322978,10.74503023,83.14,83.101,0.45947314]
[1770998323197,0.4,83.139,83.101,0.45947314]
[1770998323583,10.74503023,83.14,83.101,0.45947314]
[1770998323810,10.74503023,83.13,83.103,0.45947314]
[1770998323973,10.74503023,83.12,83.094,0.45947314]
[1770998324175,10.74503023,83.1,83.082,0.45947314]
[1770998324374,42.09817293,83.139,83.073,35.12]
[1770998324375,0.4,83.112,83.076,0.45947314]
[1770998324696,38.3,83.119,83.081,0.45947314]
[1770998325085,38.3,83.125,83.091,0.45947314]
[1770998325896,10.74503023,83.14,83.101,0.45947314]
[1770998326094,11.14503023,83.14,83.101,0.45947314]
[1770998326591,30.06305909,83.159,83.111,0.45947314]
[1770998326792,48.0726315,83.208,83.131,0.45947314]
[1770998326793,0.4,83.179,83.131,0.45947314]
[1770998326987,0.4,83.179,83.141,0.45947314]
[1770998327581,10.74503023,83.19,83.16,10.74503023]
[1770998327805,10.74503023,83.19,83.161,0.45947314]
[1770998328119,10.74503023,83.19,83.145,30.06783209]
[1770998328120,0.4,83.179,83.135,0.45947314]
[1770998328399,10.74503023,83.19,83.151,0.45947314]
[1770998329001,12.01937523,83.199,83.161,0.45947314]
[1770998329307,10.74503023,83.19,83.161,0.45947314]
[1770998329802,10.74503023,83.19,83.156,35.12]
[1770998329803,10.74503023,83.19,83.162,12.48419597]
[1770998330400,10.74503023,83.18,83.151,0.45947314]
[1770998330602,10.74503023,83.18,83.147,0.45947314]
[1770998331403,12.02082006,83.189,83.147,0.45947314]
[1770998331586,10.74503023,83.19,83.151,0.45947314]
[1770998331784,12.01937523,83.199,83.163,0.45947314]
[1770998332081,10.74503023,83.19,83.163,0.45947314]
[1770998332287,10.74503023,83.19,83.155,35.57947314]
[1770998332588,10.74503023,83.19,83.156,0.45947314]
[1770998333490,0.4,83.195,83.16,10.74503023]
[1770998333691,12.01937523,83.199,83.161,0.45947314]
[1770998334196,12.01937523,83.199,83.162,12.48419597]
[1770998334592,12.01937523,83.199,83.163,0.45947314]
[1770998334993,12.01937523,83.199,83.171,0.45947314]
[1770998336481,10.74503023,83.19,83.163,12.02457823]
[1770998336714,0.4,83.198,83.163,12.02457823]
[1770998337217,10.74503023,83.19,83.163,12.02457823]
[1770998337407,0.4,83.198,83.163,12.02457823]
[1770998338012,10.74503023,83.19,83.162,0.45947314]
[1770998338306,11.14503023,83.18,83.143,35.18]
[1770998338519,0.4,83.179,83.144,0.45947314]
[1770998338705,0.4,83.179,83.129,30.07347876]
[1770998338706,0.4,83.159,83.124,0.45947314]
[1770998338884,0.4,83.169,83.125,0.45947314]
[1770998339088,10.74503023,83.18,83.141,0.45947314]
[1770998339289,10.74503023,83.17,83.141,0.45947314]
[1770998339500,0.4,83.179,83.141,0.45947314]
[1770998340507,0.2,83.2,83.171,0.45947314]
[1770998340689,0.2,83.2,83.18,0.45947314]
[1770998340891,11.14503023,83.23,83.191,0.49389115]
[1770998341091,12.01697768,83.216,83.19,10.74503023]
[1770998341401,0.48976866,83.221,83.19,10.74503023]
[1770998341607,10.74503023,83.23,83.191,0.49389115]
[1770998341998,12.01634717,83.22,83.191,0.49389115]
[1770998342311,12.01583407,83.224,83.192,12.02038657]
[1770998342816,12.01684721,83.217,83.187,12.02098629]
[1770998343014,0.48976866,83.223,83.191,0.49389115]
[1770998343226,12.0149138,83.23,83.201,0.49389115]
[1770998343393,0.48976866,83.233,83.201,0.49389115]
[1770998343898,0.48976866,83.243,83.211,0.49389115]
[1770998344097,10.74503023,83.23,83.207,35.18]
[1770998344297,10.74503023,83.23,83.19,0.49389115]
[1770998344298,0.48976866,83.229,83.197,35.18]
[1770998344499,0.48976866,83.229,83.192,0.49389115]
[1770998344723,0.48976866,83.219,83.188,47.20092612]
[1770998345215,0.48976866,83.209,83.171,0.49389115]
[1770998345429,0.48976866,83.209,83.175,12.02276475]
[1770998345718,0.48976866,83.219,83.181,0.49389115]
[1770998346614,0.48976866,83.217,83.183,0.49389115]
[1770998347199,11.23479889,83.21,83.181,12.0218637]
[1770998347513,42.05820855,83.218,83.182,0.49389115]
[1770998347514,12.01663101,83.218,83.182,0.49389115]
[1770998347714,12.01663101,83.218,83.171,35.18]
[1770998347715,0.48976866,83.209,83.171,35.18]
[1770998347919,0.48976866,83.189,83.15,10.74503023]
[1770998348123,0.48976866,83.179,83.141,0.49389115]
[1770998348712,10.74503023,83.17,83.142,12.0276154]
[1770998348904,0.48976866,83.169,83.138,12.02813075]
[1770998349102,0.48976866,83.169,83.14,10.74503023]
[1770998349511,0.48976866,83.169,83.138,12.02813075]
[1770998349899,0.48976866,83.189,83.151,0.49389115]
[1770998350290,10.74503023,83.18,83.151,0.49389115]
[1770998350496,0.48976866,83.189,83.151,0.49389115]
[1770998350710,10.74503023,83.18,83.151,0.49389115]
[1770998350911,10.72475425,83.18,83.151,0.49389115]
[1770998351106,10.72475425,83.17,83.147,35.22]
[1770998351426,0.48976866,83.169,83.131,12.02920691]
[1770998351920,0.48976866,83.169,83.13,10.72475425]
[1770998352230,0.48976866,83.159,83.131,12.02920691]
[1770998352994,0.48976866,83.149,83.116,12.03135932]
[1770998353399,0.48976866,83.149,83.12,10.72475425]
[1770998353806,12.02530123,83.158,83.13,10.72475425]
[1770998354125,0.48976866,83.169,83.13,11.2186454]
[1770998354327,0.48976866,83.169,83.14,11.2186454]
[1770998354524,12.02255431,83.177,83.141,0.49389115]
[1770998354525,12.51232297,83.177,83.141,0.49389115]
[1770998354696,10.72475425,83.17,83.141,0.49389115]
[1770998354895,0.48976866,83.176,83.142,12.0276154]
[1770998355097,0.48976866,83.187,83.16,10.72475425]
[1770998355394,12.02058173,83.191,83.161,0.49389115]
[1770998355598,10.72475425,83.19,83.161,0.49389115]
[1770998355796,12.01818354,83.208,83.171,0.49389115]
[1770998356001,12.01807518,83.208,83.171,0.49389115]
[1770998356301,0.48976866,83.229,83.2,10.72475425]
[1770998356509,12.50481149,83.229,83.2,10.72475425]
[1770998356719,10.72475425,83.24,83.201,0.49389115]
[1770998356929,12.01359939,83.239,83.201,0.49389115]
[1770998357105,0.48976866,83.229,83.198,35.26]
[1770998357415,0.48976866,83.229,83.199,12.01937523]
[1770998357626,0.48976866,83.229,83.198,35.26]
[1770998357804,0.48976866,83.229,83.191,0.49389115]
[1770998358008,0.48976866,83.219,83.184,12.02139986]
[1770998358405,0.48976866,83.219,83.181,35.77389115]
[1770998358613,0.48976866,83.219,83.181,47.79574343]
[1770998358812,10.72475425,83.21,83.181,47.79574343]
[1770998359022,12.01807518,83.208,83.17,10.72475425]
[1770998359205,10.72475425,83.2,83.168,12.51764083]
[1770998359929,10.72475425,83.2,83.163,12.02452331]
[1770998360126,42.06326314,83.208,83.156,12.02544854]
[1770998360127,10.72475425,83.19,83.156,12.02544854]
[1770998361025,0.48976866,83.191,83.16,10.72475425]
[1770998361324,12.0196143,83.198,83.162,0.49389115]
[1770998361524,0.48976866,83.197,83.162,0.49389115]
[1770998362024,0.48976866,83.197,83.143,35.28]
[1770998362025,10.72475425,83.19,83.157,12.02538893]
[1770998362201,10.72475425,83.19,83.16,0.49389115]
[1770998362401,0.48976866,83.189,83.153,12.02601709]
[1770998362814,0.48976866,83.189,83.153,12.51990824]
[1770998363123,12.02096456,83.188,83.153,12.51990824]
[1770998363306,12.02096456,83.188,83.154,0.49389115]
[1770998364131,12.02017205,83.194,83.161,0.49389115]
[1770998364335,10.72475425,83.19,83.161,0.49389115]
[1770998364827,12.01972137,83.197,83.161,0.49389115]
[1770998365007,38.22,83.213,83.171,0.49389115]
[1770998365215,10.72475425,83.21,83.182,12.51572279]
[1770998365528,11.21452291,83.21,83.182,12.02183164]
[1770998367123,0.48976866,83.207,83.173,0.49389115]
[1770998367428,0.48976866,83.199,83.17,12.02354289]
[1770998367725,11.21452291,83.2,83.171,0.49389115]
[1770998367929,10.72475425,83.2,83.172,0.49389115]
[1770998368632,42.06326314,83.208,83.172,0.49389115]
[1770998369011,0.48976866,83.207,83.172,0.49389115]
[1770998369329,12.01937523,83.199,83.173,12.0231325]
[1770998369541,12.50804872,83.207,83.174,0.49389115]
[1770998369709,0.48976866,83.219,83.181,0.49389115]
[1770998370033,48.02995862,83.282,83.191,0.49389115]
[1770998370034,0.48976866,83.228,83.191,0.49389115]
[1770998370535,10.72475425,83.23,83.191,0.49389115]
[1770998370744,0.45667468,83.219,83.18,10.72475425]
[1770998370930,0.45667468,83.209,83.176,35.34]
[1770998371229,0.45667468,83.222,83.181,0.47919828]
[1770998371415,0.45667468,83.222,83.177,42.07894008]
[1770998371416,0.45667468,83.222,83.191,0.47919828]
[1770998371620,0.45667468,83.219,83.18,10.72475425]
[1770998371925,0.45667468,83.219,83.18,11.20395253]
[1770998372134,10.72475425,83.21,83.18,0.47919828]
[1770998372516,0.45667468,83.209,83.17,11.20395253]
[1770998372721,0.45667468,83.199,83.171,12.02342162]
[1770998372914,11.18142893,83.19,83.166,12.02400816]
[1770998373110,0.45667468,83.189,83.162,35.36]
[1770998373320,0.45667468,83.188,83.152,12.50536722]
[1770998373510,0.45667468,83.188,83.153,0.47919828]
[1770998374231,12.02090706,83.189,83.16,0.47919828]
[1770998374430,0.45667468,83.188,83.16,0.47919828]
[1770998375433,12.01966417,83.197,83.162,0.47919828]
[1770998375628,12.47633885,83.197,83.162,0.47919828]
[1770998375831,12.0191172,83.201,83.171,0.47919828]
[1770998376012,10.72475425,83.21,83.171,0.47919828]
[1770998376218,12.01677541,83.217,83.181,0.47919828]
[1770998376819,12.01518719,83.228,83.2,10.72475425]
[1770998377027,12.01518719,83.228,83.191,0.47919828]
[1770998377223,0.46511025,83.227,83.191,0.47919828]
[1770998377428,0.46511025,83.219,83.185,35.36]
[1770998377735,11.1898645,83.21,83.181,0.47808908]
[1770998378122,10.72475425,83.21,83.183,0.47808908]
[1770998378325,0.46511025,83.219,83.183,0.47808908]
[1770998379638,0.46511025,83.217,83.184,12.0215426]
[1770998379837,0.46511025,83.217,83.183,0.47808908]
[1770998380138,42.05820855,83.218,83.155,0.47808908]
[1770998380139,0.46511025,83.189,83.155,0.47808908]
[1770998380319,11.1898645,83.18,83.145,30.5459062]
[1770998380516,11.1898645,83.18,83.145,30.06781712]
[1770998380731,11.1898645,83.18,83.146,0.47808908]
[1770998381039,0.46511025,83.179,83.146,0.47808908]
[1770998381221,10.72475425,83.17,83.141,12.02776007]
[1770998381420,0.46511025,83.179,83.141,12.02776007]
[1770998381736,0.46511025,83.177,83.141,12.50584915]
[1770998382320,0.46511025,83.177,83.142,0.47808908]
[1770998382722,0.46511025,83.177,83.127,35.38]
[1770998382723,0.46511025,83.149,83.101,0.47808908]
[1770998382941,10.72475425,83.13,83.101,0.47808908]
[1770998383136,0.46511025,83.129,83.091,0.47808908]
[1770998383521,38.32,83.137,83.101,0.47808908]
[1770998383934,50.34836012,83.137,83.103,0.47808908]
[1770998384242,0.46511025,83.155,83.12,10.72475425]
[1770998384544,0.46511025,83.155,83.121,0.47808908]
[1770998384723,10.72475425,83.15,83.11,46.12475425]
[1770998385039,11.1898645,83.15,83.111,0.47808908]
[1770998385723,12.02660284,83.149,83.113,0.47808908]
[1770998386647,0.46511025,83.179,83.141,0.47808908]
[1770998386846,0.46511025,83.179,83.115,9.9781544]
[1770998386847,0.46511025,83.169,83.13,11.20284333]
[1770998387040,0.46511025,83.169,83.131,0.47808908]
[1770998387759,10.72475425,83.14,83.11,0.47808908]
[1770998387942,10.72475425,83.14,83.11,10.72475425]
[1770998388142,10.72475425,83.14,83.099,65.50430658]
[1770998388143,0.46511025,83.139,83.101,0.47808908]
[1770998388338,38.34,83.156,83.121,0.47808908]
[1770998388339,12.02602431,83.153,83.121,0.47808908]
[1770998388961,0.46511025,83.175,83.141,0.47808908]
[1770998390158,38.34,83.178,83.143,0.47808908]
[1770998390339,0.46511025,83.185,83.151,0.47808908]
[1770998390654,12.0215426,83.184,83.151,0.47808908]
[1770998390861,10.72475425,83.19,83.151,0.47808908]
[1770998391159,6.28048635,83.236,83.181,0.47808908]
[1770998391160,10.72475425,83.23,83.181,0.47808908]
[1770998391360,6.28048635,83.236,83.21,10.72475425]
[1770998391646,18.29463703,83.236,83.21,10.72475425]
[1770998392030,12.01648661,83.219,83.19,10.72475425]
[1770998392342,12.01359939,83.239,83.201,0.47808908]
[1770998392844,0.46511025,83.23,83.2,10.72475425]
[1770998393239,12.01359939,83.239,83.201,0.47808908]
[1770998393441,0.46511025,83.238,83.201,0.47808908]
[1770998393748,0.46511025,83.276,83.231,0.47808908]
[1770998393947,0.2,83.28,83.261,0.47808908]
[1770998394154,0.2,83.28,83.25,10.72475425]
[1770998394830,0.2,83.28,83.251,0.47808908]
[1770998395649,0.2,83.28,83.261,0.47808908]
[1770998395850,0.2,83.28,83.249,12.01213894]
[1770998395851,0.2,83.28,83.25,11.20284333]
[1770998396150,0.2,83.28,83.251,12.01186772]
[1770998397048,0.2,83.28,83.252,0.47808908]
[1770998397260,0.46511025,83.278,83.244,12.0128072]
[1770998397833,38.3,83.299,83.248,0.47808908]
[1770998397834,0.46511025,83.299,83.248,0.47808908]
[1770998398031,0.46511025,83.299,83.262,0.47808908]
[1770998398266,0.2,83.3,83.271,0.47808908]
[1770998398434,0.2,83.3,83.281,0.47808908]
[1770998398435,1e-08,83.3,83.281,0.47808908]
[1770998398628,1e-08,83.3,83.269,0.47808908]
[1770998398932,10.72475425,83.29,83.263,12.01013655]
[1770998399133,0.46511025,83.298,83.263,12.01013655]
[1770998399366,10.72475425,83.29,83.263,12.01013655]
[1770998399552,0.46511025,83.299,83.263,12.48822563]
[1770998400563,10.72475426,83.3,83.263,12.01013655]
[1770998401430,10.72475426,83.3,83.264,0.45893237]
[1770998401645,1e-08,83.3,83.271,0.45893237]
[1770998401845,10.72475426,83.3,83.271,0.45893237]
[1770998402258,10.72475426,83.3,83.263,12.01013655]
[1770998402568,10.72475426,83.3,83.236,5.36086188]
[1770998402569,1e-08,83.3,83.281,0.45893237]
[1770998403252,6.27653743,83.377,83.28,10.72475425]
[1770998403253,0.48002088,83.376,83.291,0.45893237]
[1770998403454,0.48002088,83.349,83.31,10.72475425]
[1770998403660,29.98615075,83.372,83.3,10.72475425]
[1770998403661,0.48002088,83.329,83.3,10.72475425]
[1770998403835,0.48002088,83.329,83.297,35.44]
[1770998404038,0.48002088,83.339,83.301,0.45893237]
[1770998404368,12.47503095,83.368,83.33,11.18368662]
[1770998404533,10.72475425,83.35,83.314,0.45893237]
[1770998404738,10.72475425,83.34,83.307,47.42374032]
[1770998404947,0.48002088,83.339,83.307,35.42]
[1770998405239,10.72475425,83.33,83.293,0.45893237]
[1770998405741,0.48002088,83.329,83.293,0.45893237]
[1770998406551,12.48072321,83.329,83.295,0.45893237]
[1770998406756,0.48002088,83.328,83.295,0.45893237]
[1770998407059,12.00070233,83.329,83.295,0.45893237]
[1770998407359,12.00070233,83.329,83.281,47.447529]
[1770998407360,11.20477513,83.31,83.281,47.447529]
[1770998407564,11.20477513,83.31,83.275,0.45893237]
[1770998407854,11.20477513,83.31,83.271,0.45893237]
[1770998408260,0.48002088,83.309,83.271,0.45893237]
[1770998409043,10.72475425,83.31,83.271,0.45893237]
[1770998409044,0.48002088,83.307,83.271,0.45893237]
[1770998409242,0.48002088,83.307,83.272,12.0088385]
[1770998409552,10.72475425,83.3,83.272,12.46777087]
[1770998409750,0.48002088,83.307,83.272,12.46777087]
[1770998409939,0.48002088,83.307,83.273,0.45893237]
[1770998410137,0.48002088,83.331,83.291,0.45893237]
[1770998410341,12.00048001,83.33,83.3,11.18368662]
[1770998410860,0.48002088,83.309,83.272,12.0088385]
[1770998411060,0.48002088,83.299,83.27,12.00912693]
[1770998411264,0.48002088,83.279,83.241,0.45893237]
[1770998411466,10.69216426,83.27,83.241,0.45893237]
[1770998411667,0.48002088,83.279,83.241,0.45893237]
[1770998411863,0.48002088,83.295,83.261,0.45893237]
[1770998412061,0.48002088,83.305,83.261,0.45893237]
[1770998412362,0.48002088,83.317,83.28,10.69216426]
[1770998412674,0.48002088,83.309,83.27,10.69216426]
[1770998412853,0.48002088,83.297,83.26,12.01044408]
[1770998413058,10.69216426,83.29,83.26,12.01044408]
[1770998413253,12.00509015,83.298,83.26,12.01044408]
[1770998413254,10.69216426,83.3,83.271,0.45893237]
[1770998413576,38.06,83.328,83.26,52.72903159]
[1770998413577,11.17218514,83.32,83.281,0.45893237]
[1770998413947,0.48002088,83.32,83.291,0.45893237]
[1770998414154,0.48002088,83.33,83.3,10.69216426]
[1770998414354,0.48002088,83.338,83.301,0.45893237]
[1770998414788,0.48002088,83.349,83.311,0.45893237]
[1770998414970,0.48002088,83.37,83.34,10.69216426]
[1770998415155,11.9934276,83.379,83.341,0.45893237]
[1770998415473,11.9934276,83.379,83.312,4.61729252]
[1770998415474,0.48002088,83.349,83.291,0.45893237]
[1770998415672,10.69216426,83.33,83.291,0.45893237]
[1770998415869,0.48002088,83.339,83.301,0.45893237]
[1770998416048,0.48002088,83.349,83.311,0.45893237]
[1770998416856,0.48002088,83.339,83.298,0.45893237]
[1770998417059,12.47934891,83.338,83.301,0.45893237]
[1770998417258,0.48002088,83.329,83.29,10.69216426]
[1770998417571,0.48002088,83.329,83.292,0.45893237]
[1770998417982,41.99764812,83.338,83.301,0.45893237]
[1770998418154,0.48002088,83.337,83.301,0.45893237]